fUSD/lending_fUSD_20250123
["ID","MTS","AMOUNT","RATE_DAILY","PERIOD"]
[350063845,1737597049043,-502.86209674,0.00019452,2]
[350063846,1737597049053,-500.0,0.00019452,2]
[350063847,1737597049062,-512.65491056,0.00019452,2]
[350063848,1737597049072,-500.0,0.00019452,2]
[350063849,1737597049081,-500.0,0.00019452,2]
[350063850,1737597049091,-645.68,0.00019452,2]
[350063851,1737597049101,-500.0,0.00019452,2]
[350063852,1737597049110,-500.0,0.00019452,2]
[350063853,1737597049119,-1395.77,0.00019452,2]
[350063854,1737597049129,-1548.41,0.00019452,2]
[350063855,1737597049138,-500.0,0.00019452,2]
[350063856,1737597049150,-500.0,0.00019452,2]
[350063857,1737597049160,-500.0,0.00019452,2]
[350063858,1737597049171,-734.11,0.00019452,2]
[350063859,1737597049180,-640.19,0.00019452,2]
[350063860,1737597049190,-913.91,0.00019452,2]
[350063861,1737597049199,-500.0,0.00019452,2]
[350063862,1737597049210,-500.0,0.00019452,2]
[350063863,1737597049220,-500.0,0.00019452,2]
[350063864,1737597049232,-665.46,0.00019452,2]
[350063865,1737597049242,-500.0,0.00019452,2]
[350063866,1737597049252,-500.0,0.00019452,2]
[350063867,1737597049261,-590.06143215,0.00019452,2]
[350063868,1737597049271,-500.0,0.00019452,2]
[350063869,1737597049281,-500.0,0.00019452,2]
[350063870,1737597049291,-500.0,0.00019452,2]
[350063871,1737597049301,-500.0,0.00019452,2]
[350063872,1737597049310,-1033.15,0.00019452,2]
[350063873,1737597049320,-500.0,0.00019452,2]
[350063874,1737597049330,-500.0,0.00019452,2]
[350063875,1737597049340,-500.0,0.00019452,2]
[350063876,1737597049350,-508.92473119,0.00019452,2]
[350063877,1737597049360,-547.85,0.00019452,2]
[350063878,1737597049370,-500.0,0.00019452,2]
[350063879,1737597049379,-500.0,0.00019452,2]
[350063880,1737597049389,-500.0,0.00019452,2]
[350063881,1737597049399,-500.0,0.00019452,2]
[350063882,1737597049408,-1043.11,0.00019452,2]
[350063883,1737597049418,-500.0,0.00019452,2]
[350063884,1737597049427,-500.0,0.00019452,2]
[350063885,1737597049436,-500.0,0.00019452,2]
[350063886,1737597049446,-500.0,0.00019452,2]
[350063887,1737597049455,-466.12596238,0.00019452,2]
[350063888,1737597049465,-500.0,0.00019452,2]
[350063889,1737597049475,-500.0,0.00019452,2]
[350063890,1737597049486,-500.0,0.00019452,2]
[350063891,1737597049496,-556.01,0.00019452,2]
[350063892,1737597049506,-500.0,0.00019452,2]
[350063893,1737597049516,-991.21,0.00019452,2]
[350063894,1737597049525,-586.46,0.00019452,2]
[350063895,1737597049535,-534.38920173,0.00019452,2]
[350063896,1737597049546,-1995.0,0.00019452,2]
[350063897,1737597049555,-261.73750918,0.00019452,2]
[350063898,1737597049565,-2266.43,0.00019452,2]
[350063899,1737597049575,-500.0,0.00019452,2]
[350063900,1737597049584,-500.0,0.00019452,2]
[350063901,1737597049594,-504.45602237,0.00019452,2]
[350063902,1737597049603,-514.59409573,0.00019452,2]
[350063903,1737597049612,-500.0,0.00019452,2]
[350063904,1737597049621,-500.0,0.00019452,2]
[350063905,1737597049631,-500.0,0.00019452,2]
[350063906,1737597049640,-500.0,0.00019452,2]
[350063907,1737597049650,-500.0,0.00019452,2]
[350063908,1737597049659,-564.67,0.00019452,2]
[350063909,1737597049668,-500.0,0.00019452,2]
[350063910,1737597049678,-512.38146752,0.00019452,2]
[350063911,1737597049688,-1676.87,0.00019452,2]
[350063912,1737597049697,-500.0,0.00019452,2]
[350063913,1737597049706,-500.0,0.00019452,2]
[350063914,1737597049716,-3898.98,0.00019452,2]
[350063915,1737597049727,-504.2659657,0.00019452,2]
[350063916,1737597049737,-500.0,0.00019452,2]
[350063917,1737597049746,-500.0,0.00019452,2]
[350063918,1737597049755,-661.08,0.00019452,2]
[350063919,1737597049764,-500.0,0.00019452,2]
[350063920,1737597049774,-500.0,0.00019452,2]
[350063921,1737597049783,-500.0,0.00019452,2]
[350063922,1737597049792,-502.74928889,0.00019452,2]
[350063923,1737597049802,-500.0,0.00019452,2]
[350063924,1737597049811,-500.0,0.00019452,2]
[350063925,1737597049819,-500.0,0.00019452,2]
[350063926,1737597049829,-500.0,0.00019452,2]
[350063927,1737597049838,-500.0,0.00019452,2]
[350063928,1737597049847,-836.81,0.00019452,2]
[350063929,1737597049856,-500.0,0.00019452,2]
[350063930,1737597049866,-236.95112383,0.00019452,2]
[350063931,1737597049875,-821.27,0.00019452,2]
[350063932,1737597049884,-500.0,0.00019452,2]
[350063933,1737597049892,-500.0,0.00019452,2]
[350063934,1737597049902,-1502.53,0.00019452,2]
[350063935,1737597049911,-503.95553516,0.00019452,2]
[350063936,1737597049920,-500.0,0.00019452,2]
[350063937,1737597049929,-500.0,0.00019452,2]
[350063938,1737597049938,-342.49,0.00019452,2]
[350063939,1737597049948,-500.0,0.00019452,2]
[350063940,1737597049957,-359.27778118,0.00019473,2]
[350063941,1737597049966,-515.70077797,0.00019623,2]
[350063942,1737597049975,-352.06235706,0.00019624,2]
[350063943,1737597049986,-163.2331682,0.00019626,2]
[350063944,1737597049996,-500.0,0.00019627,2]
[350063945,1737597050006,-21567.18542332,0.00019627,2]
[350063946,1737597050016,-2615.33893808,0.00019627,2]
[350063947,1737597050025,-1307.58,0.00019713,2]
[350063948,1737597050035,-1000.0,0.00019721,2]
[350063949,1737597050044,-500.0,0.00019725,2]
[350063950,1737597050053,-251.256397,0.00019726,2]
[350063951,1737597050062,-336.867004,0.00019726,2]
[350063952,1737597050072,-500.0,0.00019726,2]
[350063953,1737597050081,-500.0,0.00019726,2]
[350063954,1737597050090,-500.0,0.00019726,2]
[350063955,1737597050100,-509.13581896,0.00019726,2]
[350063956,1737597050109,-394.35038822,0.00019726,2]
[350063957,1737597050118,-500.0,0.00019726,2]
[350063958,1737597050127,-500.0,0.00019726,2]
[350063959,1737597050136,-500.0,0.00019726,2]
[350063960,1737597050146,-500.0,0.00019726,2]
[350063961,1737597050158,-500.0,0.00019726,2]
[350063962,1737597050167,-506.64188296,0.00019726,2]
[350063963,1737597050176,-565.2,0.00019726,2]
[350063964,1737597050187,-506.3894111,0.00019726,2]
[350063965,1737597050196,-500.0,0.00019726,2]
[350063966,1737597050205,-500.0,0.00019726,2]
[350063967,1737597050215,-500.0,0.00019726,2]
[350063968,1737597050225,-500.0,0.00019726,2]
[350063969,1737597050236,-524.78604703,0.00019726,2]
[350063970,1737597050245,-507.20839173,0.00019726,2]
[350063971,1737597050255,-500.0,0.00019726,2]
[350063972,1737597050264,-534.57148476,0.00019726,2]
[350063973,1737597050274,-500.0,0.00019726,2]
[350063974,1737597050284,-302.13695653,0.00019726,2]
[350063975,1737597050293,-500.0,0.00019726,2]
[350063976,1737597050302,-500.0,0.00019726,2]
[350063977,1737597050312,-500.0,0.00019726,2]
[350063978,1737597050321,-500.0,0.00019726,2]
[350063979,1737597050331,-500.0,0.00019726,2]
[350063980,1737597050342,-500.0,0.00019726,2]
[350063981,1737597050353,-500.0,0.00019726,2]
[350063982,1737597050363,-500.0,0.00019726,2]
[350063983,1737597050373,-500.0,0.00019726,2]
[350063984,1737597050382,-500.0,0.00019726,2]
[350063985,1737597050392,-509.44838685,0.00019726,2]
[350063986,1737597050403,-500.0,0.00019726,2]
[350063987,1737597050414,-500.0,0.00019726,2]
[350063988,1737597050423,-500.0,0.00019726,2]
[350063989,1737597050433,-500.0,0.00019726,2]
[350063990,1737597050442,-521.1852955,0.00019726,2]
[350063991,1737597050453,-500.0,0.00019726,2]
[350063992,1737597050462,-500.0,0.00019726,2]
[350063993,1737597050472,-500.0,0.00019726,2]
[350063994,1737597050484,-500.0,0.00019726,2]
[350063995,1737597050533,-516.42773125,0.00019726,2]
[350063996,1737597050542,-500.0,0.00019726,2]
[350063997,1737597050551,-516.81852952,0.00019726,2]
[350063998,1737597050561,-500.0,0.00019726,2]
[350063999,1737597050570,-500.0,0.00019726,2]
[350064000,1737597050579,-184.99255273,0.00019726,2]
[350064001,1737597050588,-509.77690724,0.00019726,2]
[350064002,1737597050597,-500.0,0.00019726,2]
[350064003,1737597050606,-500.0,0.00019726,2]
[350064004,1737597050615,-356.6951875,0.00019726,2]
[350064005,1737597050624,-500.0,0.00019726,2]
[350064006,1737597050635,-500.0,0.00019726,2]
[350064007,1737597050644,-510.95323262,0.00019726,2]
[350064008,1737597050654,-500.0,0.00019726,2]
[350064009,1737597050663,-500.0,0.00019726,2]
[350064010,1737597050672,-500.0,0.00019726,2]
[350064011,1737597050680,-500.0,0.00019726,2]
[350064012,1737597050689,-500.0,0.00019726,2]
[350064013,1737597050698,-500.0,0.00019726,2]
[350064014,1737597050707,-522.47,0.00019726,2]
[350064015,1737597050715,-520.12673284,0.00019726,2]
[350064016,1737597050724,-500.0,0.00019726,2]
[350064017,1737597050736,-500.0,0.00019726,2]
[350064018,1737597050745,-500.0,0.00019726,2]
[350064019,1737597050754,-500.0,0.00019726,2]
[350064020,1737597050763,-500.0,0.00019726,2]
[350064021,1737597050772,-500.0,0.00019726,2]
[350064022,1737597050781,-500.0,0.00019726,2]
[350064023,1737597050789,-500.0,0.00019726,2]
[350064024,1737597050798,-524.13108248,0.00019726,2]
[350064025,1737597050807,-527.02990747,0.00019726,2]
[350064026,1737597050816,-500.0,0.00019726,2]
[350064027,1737597050826,-500.0,0.00019726,2]
[350064028,1737597050835,-500.0,0.00019726,2]
[350064029,1737597050844,-500.0,0.00019726,2]
[350064030,1737597050853,-500.0,0.00019726,2]
[350064031,1737597050864,-500.0,0.00019726,2]
[350064032,1737597050873,-506.04757648,0.00019726,2]
[350064033,1737597050882,-500.0,0.00019726,2]
[350064034,1737597050891,-500.0,0.00019726,2]
[350064035,1737597050899,-500.0,0.00019726,2]
[350064036,1737597050908,-500.0,0.00019726,2]
[350064037,1737597050917,-500.0,0.00019726,2]
[350064038,1737597050927,-500.0,0.00019726,2]
[350064039,1737597050937,-500.0,0.00019726,2]
[350064040,1737597050946,-500.0,0.00019726,2]
[350064041,1737597050955,-500.0,0.00019726,2]
[350064042,1737597050964,-500.0,0.00019726,2]
[350064043,1737597050974,-500.0,0.00019726,2]
[350064044,1737597050987,-500.0,0.00019726,2]
[350064045,1737597050996,-500.0,0.00019726,2]
[350064046,1737597051007,-500.0,0.00019726,2]
[350064047,1737597051016,-500.0,0.00019726,2]
[350064048,1737597051026,-500.0,0.00019726,2]
[350064049,1737597051035,-300.31290349,0.00019726,7]
[350064050,1737597051044,-500.0,0.00019726,2]
[350064051,1737597051054,-500.0,0.00019726,2]
[350064052,1737597051063,-500.0,0.00019726,2]
[350064053,1737597051073,-500.0,0.00019726,2]
[350064054,1737597051082,-500.0,0.00019726,2]
[350064055,1737597051091,-500.0,0.00019726,2]
[350064056,1737597051100,-500.0,0.00019726,2]
[350064057,1737597051110,-195.14714639,0.00019726,2]
[350064058,1737597051119,-500.0,0.00019726,2]
[350064059,1737597051129,-500.0,0.00019726,2]
[350064060,1737597051139,-500.0,0.00019726,2]
[350064061,1737597051150,-500.0,0.00019726,2]
[350064062,1737597051160,-623.29,0.00019726,2]
[350064063,1737597051169,-500.0,0.00019726,2]
[350064064,1737597051178,-616.87,0.00019726,2]
[350064065,1737597051188,-217.87054665,0.00019726,2]
[350064066,1737597051198,-500.0,0.00019726,2]
[350064067,1737597051208,-500.0,0.00019726,2]
[350064068,1737597051218,-500.0,0.00019726,2]
[350064069,1737597051229,-519.91233143,0.00019726,2]
[350064070,1737597051241,-500.0,0.00019726,2]
[350064071,1737597051251,-500.0,0.00019726,2]
[350064072,1737597051260,-500.0,0.00019726,2]
[350064073,1737597051270,-500.0,0.00019726,2]
[350064074,1737597051280,-500.0,0.00019726,2]
[350064075,1737597051289,-500.0,0.00019726,2]
[350064076,1737597051299,-500.0,0.00019726,2]
[350064077,1737597051308,-500.0,0.00019726,2]
[350064078,1737597051318,-500.0,0.00019726,2]
[350064079,1737597051328,-500.0,0.00019726,2]
[350064080,1737597051338,-500.0,0.00019726,2]
[350064081,1737597051347,-509.43,0.00019726,2]
[350064082,1737597051357,-500.0,0.00019726,2]
[350064083,1737597051367,-500.0,0.00019726,2]
[350064084,1737597051376,-500.0,0.00019726,2]
[350064085,1737597051386,-500.0,0.00019726,2]
[350064086,1737597051395,-514.99206385,0.00019726,2]
[350064087,1737597051405,-517.62688506,0.00019726,2]
[350064088,1737597051414,-511.76368637,0.00019726,2]
[350064089,1737597051424,-500.0,0.00019726,2]
[350064090,1737597051434,-500.0,0.00019726,2]
[350064091,1737597051444,-500.0,0.00019726,2]
[350064092,1737597051453,-500.0,0.00019726,2]
[350064093,1737597051462,-500.0,0.00019726,2]
[350064094,1737597051471,-825.88,0.00019726,2]
[350064095,1737597051483,-500.0,0.00019726,2]
[350064096,1737597051494,-580.1,0.00019726,2]
[350064097,1737597051503,-500.0,0.00019726,2]
[350064098,1737597051512,-516.37403289,0.00019726,2]
[350064099,1737597051521,-500.0,0.00019726,2]
[350064100,1737597051530,-628.58,0.00019726,2]
[350064101,1737597051540,-500.0,0.00019726,2]
[350064102,1737597051549,-505.90075112,0.00019726,2]
[350064103,1737597051558,-500.0,0.00019726,2]
[350064104,1737597051567,-500.0,0.00019726,2]
[350064105,1737597051577,-496.21325323,0.00019726,2]
[350064106,1737597051585,-500.0,0.00019726,2]
[350064107,1737597051595,-501.59,0.00019726,2]
[350064108,1737597051605,-500.0,0.00019726,2]
[350064109,1737597051615,-500.0,0.00019726,2]
[350064110,1737597051625,-500.0,0.00019726,2]
[350064111,1737597051634,-520.06,0.00019726,2]
[350064112,1737597051644,-500.0,0.00019726,2]
[350064113,1737597051654,-714.27,0.00019726,2]
[350064114,1737597051663,-640.0,0.00019726,2]
[350064115,1737597051674,-558.33173748,0.00019726,2]
[350064116,1737597051685,-500.0,0.00019726,2]
[350064117,1737597051694,-512.06366733,0.00019726,2]
[350064118,1737597051705,-500.0,0.00019726,2]
[350064119,1737597051714,-500.0,0.00019726,2]
[350064120,1737597051723,-500.0,0.00019726,2]
[350064121,1737597051735,-500.0,0.00019726,2]
[350064122,1737597051746,-500.0,0.00019726,2]
[350064123,1737597051755,-500.0,0.00019726,2]
[350064124,1737597051764,-630.23,0.00019726,2]
[350064125,1737597051773,-500.0,0.00019726,2]
[350064126,1737597051782,-503.05084948,0.00019726,2]
[350064127,1737597051791,-389.9421518,0.00019726,2]
[350064128,1737597051800,-500.0,0.00019726,2]
[350064129,1737597051809,-505.83267183,0.00019726,2]
[350064130,1737597051818,-507.55978216,0.00019726,2]
[350064131,1737597051828,-500.0,0.00019726,2]
[350064132,1737597051837,-509.92715315,0.00019726,2]
[350064133,1737597051846,-500.0,0.00019726,2]
[350064134,1737597051856,-500.0,0.00019726,2]
[350064135,1737597051865,-527.7,0.00019726,2]
[350064136,1737597051874,-500.0,0.00019726,2]
[350064137,1737597051884,-500.0,0.00019726,2]
[350064138,1737597051893,-505.62406565,0.00019726,2]
[350064139,1737597051902,-522.55,0.00019726,2]
[350064140,1737597051912,-500.0,0.00019726,2]
[350064141,1737597051923,-500.0,0.00019726,2]
[350064142,1737597051933,-520.04257924,0.00019726,2]
[350064143,1737597051944,-500.0,0.00019726,2]
[350064144,1737597051953,-511.48560337,0.00019726,2]
[350064145,1737597051962,-500.0,0.00019726,2]
[350064146,1737597051971,-500.0,0.00019726,2]
[350064147,1737597051984,-444.30672375,0.00019726,2]
[350064148,1737597051994,-500.0,0.00019726,2]
[350064149,1737597052004,-500.0,0.00019726,2]
[350064150,1737597052013,-500.0,0.00019726,2]
[350064151,1737597052023,-500.0,0.00019726,2]
[350064152,1737597052033,-500.0,0.00019726,2]
[350064153,1737597052042,-500.0,0.00019726,2]
[350064154,1737597052052,-514.24628328,0.00019726,2]
[350064155,1737597052061,-565.1,0.00019726,2]
[350064156,1737597052070,-500.0,0.00019726,2]
[350064157,1737597052079,-1056.51,0.00019726,2]
[350064158,1737597052088,-522.06655542,0.00019726,2]
[350064159,1737597052097,-500.0,0.00019726,2]
[350064160,1737597052106,-500.0,0.00019726,2]
[350064161,1737597052116,-517.41620719,0.00019726,2]
[350064162,1737597052125,-500.0,0.00019726,2]
[350064163,1737597052135,-514.16666637,0.00019726,2]
[350064164,1737597052145,-627.26,0.00019726,2]
[350064165,1737597052155,-500.0,0.00019726,2]
[350064166,1737597052169,-500.0,0.00019726,2]
[350064167,1737597052179,-500.0,0.00019726,2]
[350064168,1737597052188,-1435.52,0.00019726,2]
[350064169,1737597052199,-500.0,0.00019726,2]
[350064170,1737597052208,-500.0,0.00019726,2]
[350064171,1737597052218,-1381.09,0.00019726,2]
[350064172,1737597052232,-500.0,0.00019726,2]
[350064173,1737597052243,-500.0,0.00019726,2]
[350064174,1737597052254,-873.98,0.00019726,2]
[350064175,1737597052264,-190.82674631,0.00019726,2]
[350064176,1737597052273,-547.24660592,0.00019726,2]
[350064177,1737597052283,-588.66,0.00019726,2]
[350064178,1737597052292,-500.0,0.00019726,2]
[350064179,1737597052302,-804.46,0.00019726,2]
[350064180,1737597052311,-520.75801478,0.00019726,2]
[350064181,1737597052321,-500.0,0.00019726,2]
[350064182,1737597052330,-676.63,0.00019726,2]
[350064183,1737597052339,-500.0,0.00019726,2]
[350064184,1737597052349,-500.0,0.00019726,2]
[350064185,1737597052358,-500.0,0.00019726,2]
[350064186,1737597052367,-2865.77,0.00019726,2]
[350064187,1737597052377,-500.0,0.00019726,2]
[350064188,1737597052386,-500.0,0.00019726,2]
[350064189,1737597052396,-500.0,0.00019726,2]
[350064190,1737597052406,-725.79,0.00019726,2]
[350064191,1737597052415,-215.96925731,0.00019726,2]
[350064192,1737597052424,-2221.72,0.00019726,2]
[350064193,1737597052434,-500.0,0.00019726,2]
[350064194,1737597052445,-519.17,0.00019726,2]
[350064195,1737597052455,-500.0,0.00019726,2]
[350064196,1737597052465,-674.11,0.00019726,2]
[350064197,1737597052475,-1211.94,0.00019726,2]
[350064198,1737597052492,-308.24022293,0.00019726,2]
[350064199,1737597052502,-500.0,0.00019726,2]
[350064200,1737597052512,-406.97095141,0.00019726,2]
[350064201,1737597052521,-509.41326168,0.00019726,2]
[350064202,1737597052531,-710.8,0.00019726,2]
[350064203,1737597052540,-500.0,0.00019726,2]
[350064204,1737597052550,-853.14,0.00019726,2]
[350064205,1737597052560,-500.0,0.00019726,2]
[350064206,1737597052568,-712.48,0.00019726,2]
[350064207,1737597052578,-1663.29,0.00019726,2]
[350064208,1737597052587,-568.46,0.00019726,2]
[350064209,1737597052597,-706.45,0.00019726,2]
[350064210,1737597052607,-1244.86,0.00019726,2]
[350064211,1737597052617,-757.37,0.00019726,2]
[350064212,1737597052627,-500.0,0.00019726,2]
[350064213,1737597052636,-1088.68,0.00019726,2]
[350064214,1737597052646,-500.0,0.00019726,2]
[350064215,1737597052656,-1574.13,0.00019726,2]
[350064216,1737597052665,-1332.5,0.00019726,2]
[350064217,1737597052675,-500.0,0.00019726,2]
[350064218,1737597052685,-500.0,0.00019726,2]
[350064219,1737597052694,-913.71,0.00019726,2]
[350064220,1737597052704,-169.76791405,0.00019726,2]
[350064221,1737597052714,-655.19,0.00019726,2]
[350064222,1737597052724,-1162.79,0.00019726,2]
[350064223,1737597052737,-500.0,0.00019726,2]
[350064224,1737597052746,-500.0,0.00019726,2]
[350064225,1737597052756,-500.0,0.00019726,2]
[350064226,1737597052765,-500.0,0.00019726,2]
[350064227,1737597052775,-514.22949978,0.00019726,2]
[350064228,1737597052784,-1340.52,0.00019726,2]
[350064229,1737597052794,-500.0,0.00019726,2]
[350064230,1737597052803,-500.0,0.00019726,2]
[350064231,1737597052813,-500.0,0.00019726,2]
[350064232,1737597052823,-500.0,0.00019726,2]
[350064233,1737597052832,-3289.67,0.00019726,2]
[350064234,1737597052842,-500.0,0.00019726,2]
[350064235,1737597052852,-1000.0,0.00019726,2]
[350064236,1737597052862,-1716.49,0.00019726,2]
[350064237,1737597052871,-500.0,0.00019726,2]
[350064238,1737597052880,-879.82,0.00019726,2]
[350064239,1737597052889,-500.0,0.00019726,2]
[350064240,1737597052899,-1172.17,0.00019726,2]
[350064241,1737597052908,-500.0,0.00019726,2]
[350064242,1737597052918,-500.0,0.00019726,2]
[350064243,1737597052927,-500.0,0.00019726,2]
[350064244,1737597052936,-1711.63,0.00019726,2]
[350064245,1737597052945,-2409.19,0.00019726,2]
[350064246,1737597052955,-793.72,0.00019726,2]
[350064247,1737597052964,-500.0,0.00019726,2]
[350064248,1737597052973,-500.0,0.00019726,2]
[350064249,1737597052986,-500.0,0.00019726,2]
[350064250,1737597052995,-500.0,0.00019726,2]
[350064251,1737597053005,-500.0,0.00019726,2]
[350064252,1737597053014,-1896.45,0.00019726,2]
[350064253,1737597053023,-1858.04,0.00019726,2]
[350064254,1737597053033,-500.0,0.00019726,2]
[350064255,1737597053042,-500.0,0.00019726,2]
[350064256,1737597053052,-500.0,0.00019726,2]
[350064257,1737597053062,-510.67939963,0.00019726,2]
[350064258,1737597053071,-500.0,0.00019726,2]
[350064259,1737597053080,-500.0,0.00019726,2]
[350064260,1737597053090,-704.23,0.00019726,2]
[350064261,1737597053100,-500.0,0.00019726,2]
[350064262,1737597053108,-500.0,0.00019726,2]
[350064263,1737597053118,-716.76,0.00019726,2]
[350064264,1737597053127,-1050.66,0.00019726,2]
[350064265,1737597053137,-1997.74,0.00019726,2]
[350064266,1737597053148,-500.0,0.00019726,2]
[350064267,1737597053159,-500.0,0.00019726,2]
[350064268,1737597053171,-500.0,0.00019726,2]
[350064269,1737597053180,-518.96756964,0.00019726,2]
[350064270,1737597053190,-500.0,0.00019726,2]
[350064271,1737597053200,-500.0,0.00019726,2]
[350064272,1737597053209,-529.26,0.00019726,2]
[350064273,1737597053219,-728.54,0.00019726,2]
[350064274,1737597053231,-1405.82,0.00019726,2]
[350064275,1737597053241,-500.0,0.00019726,2]
[350064276,1737597053252,-500.0,0.00019726,2]
[350064277,1737597053262,-500.0,0.00019726,2]
[350064278,1737597053271,-500.0,0.00019726,2]
[350064279,1737597053281,-515.63509389,0.00019726,2]
[350064280,1737597053291,-500.0,0.00019726,2]
[350064281,1737597053301,-500.0,0.00019726,2]
[350064282,1737597053310,-1471.13,0.00019726,2]
[350064283,1737597053320,-500.0,0.00019726,2]
[350064284,1737597053329,-571.98846702,0.00019726,2]
[350064285,1737597053339,-500.0,0.00019726,2]
[350064286,1737597053349,-500.0,0.00019726,2]
[350064287,1737597053359,-1836.27,0.00019726,2]
[350064288,1737597053369,-841.66,0.00019726,2]
[350064289,1737597053379,-500.0,0.00019726,2]
[350064290,1737597053389,-500.0,0.00019726,2]
[350064291,1737597053398,-500.0,0.00019726,2]
[350064292,1737597053407,-856.13,0.00019726,2]
[350064293,1737597053417,-1400.47,0.00019726,2]
[350064294,1737597053427,-440.58686893,0.00019726,2]
[350064295,1737597053436,-598.94,0.00019726,2]
[350064296,1737597053446,-510.12625669,0.00019726,2]
[350064297,1737597053455,-500.0,0.00019726,2]
[350064298,1737597053465,-500.0,0.00019726,2]
[350064299,1737597053475,-531.77281297,0.00019726,2]
[350064300,1737597053489,-503.53,0.00019726,2]
[350064301,1737597053499,-500.0,0.00019726,2]
[350064302,1737597053508,-500.0,0.00019726,2]
[350064303,1737597053518,-1061.16,0.00019726,2]
[350064304,1737597053528,-500.0,0.00019726,2]
[350064305,1737597053538,-806.2,0.00019726,2]
[350064306,1737597053548,-500.0,0.00019726,2]
[350064307,1737597053558,-500.0,0.00019726,2]
[350064308,1737597053567,-500.0,0.00019726,2]
[350064309,1737597053577,-953.85,0.00019726,2]
[350064310,1737597053586,-206.0644581,0.00019726,2]
[350064311,1737597053596,-631.59,0.00019726,2]
[350064312,1737597053606,-500.0,0.00019726,2]
[350064313,1737597053616,-500.0,0.00019726,2]
[350064314,1737597053626,-500.0,0.00019726,2]
[350064315,1737597053635,-500.0,0.00019726,2]
[350064316,1737597053645,-500.0,0.00019726,2]
[350064317,1737597053655,-605.19,0.00019726,2]
[350064318,1737597053664,-500.0,0.00019726,2]
[350064319,1737597053674,-500.0,0.00019726,2]
[350064320,1737597053683,-583.42812666,0.00019726,2]
[350064321,1737597053692,-500.0,0.00019726,2]
[350064322,1737597053702,-612.54,0.00019726,2]
[350064323,1737597053711,-547.64,0.00019726,2]
[350064324,1737597053721,-500.0,0.00019726,2]
[350064325,1737597053735,-500.0,0.00019726,2]
[350064326,1737597053745,-500.0,0.00019726,2]
[350064327,1737597053754,-510.44288807,0.00019726,2]
[350064328,1737597053764,-520.72804979,0.00019726,2]
[350064329,1737597053773,-589.93,0.00019726,2]
[350064330,1737597053783,-513.92169685,0.00019726,2]
[350064331,1737597053792,-500.0,0.00019726,2]
[350064332,1737597053803,-500.0,0.00019726,2]
[350064333,1737597053813,-500.0,0.00019726,2]
[350064334,1737597053823,-500.0,0.00019726,2]
[350064335,1737597053833,-1395.77,0.00019726,2]
[350064336,1737597053842,-1548.41,0.00019726,2]
[350064337,1737597053852,-500.0,0.00019726,2]
[350064338,1737597053861,-645.68,0.00019726,2]
[350064339,1737597053871,-500.0,0.00019726,2]
[350064340,1737597053881,-500.0,0.00019726,2]
[350064341,1737597053890,-734.11,0.00019726,2]
[350064342,1737597053900,-640.19,0.00019726,2]
[350064343,1737597053909,-913.91,0.00019726,2]
[350064344,1737597053919,-500.0,0.00019726,2]